﻿Department family,Entity,Date,Expense type,Expense area,Supplier,Transaction number,Amount,Description
Department of Health,NHS Blood and Transplant,01/03/2018,AUDIT EXTERNAL FINANCIAL,Finance,NATIONAL AUDIT OFFICE,2193346,43500,Fees for external audit of statutory accounts
Department of Health,NHS Blood and Transplant,01/03/2018,AVERAGE COST VARIANCE,General and Other,WOODNUT CONSTRUCTION AND DEVELOPMENT LTD,2193716,-0.3,Difference between Purchase Order and Supplier Invoice price for Stores items
Department of Health,NHS Blood and Transplant,01/03/2018,CARRIAGE INWARDS,General and Other,ABBOTT LABORATORIES LTD,2195361,-59.75,Carriage charges on stores purchases
Department of Health,NHS Blood and Transplant,01/03/2018,CHEMICALS & REAGENTS,"Blood Supply: Manufacturing, Testing & Issue",ABBOTT LABORATORIES LTD,2175081,40.15,Chemicals and Reagents used
Department of Health,NHS Blood and Transplant,01/03/2018,CHEMICALS & REAGENTS,"Blood Supply: Manufacturing, Testing & Issue",ABBOTT LABORATORIES LTD,2175296,219.27,Chemicals and Reagents used
Department of Health,NHS Blood and Transplant,01/03/2018,DIRECT CONSUMABLES,"Blood Supply: Manufacturing, Testing & Issue",ABBOTT LABORATORIES LTD,2175067,40.15,Consumable items used primarily during normal day to day operations
Department of Health,NHS Blood and Transplant,01/03/2018,DIRECT CONSUMABLES,"Blood Supply: Manufacturing, Testing & Issue",ABBOTT LABORATORIES LTD,2175315,20132.28,Consumable items used primarily during normal day to day operations
Department of Health,NHS Blood and Transplant,01/03/2018,DIRECT CONSUMABLES,"Blood Supply: Manufacturing, Testing & Issue",ABBOTT LABORATORIES LTD,2195361,3235.15,Consumable items used primarily during normal day to day operations
Department of Health,NHS Blood and Transplant,01/03/2018,EXTERNAL SERVICES OTHER,General and Other,KPMG LLP,2192835,24914.84,External costs of providing other services
Department of Health,NHS Blood and Transplant,01/03/2018,EXTERNAL SERVICES OTHER,General and Other,PSTG LTD,2173308,19101.6,External costs of providing other services
Department of Health,NHS Blood and Transplant,01/03/2018,EXTERNAL SERVICES OTHER,General and Other,REPLY LIMITED,2195414,48255,External costs of providing other services
Department of Health,NHS Blood and Transplant,01/03/2018,EXTERNAL SERVICES OTHER,General and Other,REPLY LIMITED,2195416,112310,External costs of providing other services
Department of Health,NHS Blood and Transplant,01/03/2018,EXTERNAL SERVICES OTHER,General and Other,REPLY LIMITED,2195417,47740,External costs of providing other services
Department of Health,NHS Blood and Transplant,01/03/2018,EXTERNAL SERVICES OTHER,General and Other,REPLY LIMITED,2195419,37777.5,External costs of providing other services
Department of Health,NHS Blood and Transplant,01/03/2018,EXTERNAL SERVICES OTHER,Information Communication Technology,PSTG LTD,2173308,12734.4,External costs of providing other services
Department of Health,NHS Blood and Transplant,01/03/2018,EXTERNAL SERVICES OTHER,Organ Donation & Transplantation,KPMG LLP,2192835,6228.71,External costs of providing other services
Department of Health,NHS Blood and Transplant,01/03/2018,EXTERNAL SERVICES OTHER,Research & Development,UNIVERSITY OF BRISTOL,2193991,127431,External costs of providing other services
Department of Health,NHS Blood and Transplant,01/03/2018,EXTERNAL SERVICES OTHER,Research & Development,UNIVERSITY OF BRISTOL,2193994,26060,External costs of providing other services
Department of Health,NHS Blood and Transplant,01/03/2018,INVENTORY MATERIALS,NBS and ODT All Areas,HAEMONETICS LIMITED,2192793,51909.12,Items purchased for warehouses (and subsequent issue to operational departments)
Department of Health,NHS Blood and Transplant,01/03/2018,INVENTORY MATERIALS,NBS and ODT All Areas,INSIGHT HEALTH LTD,2194087,35712,Items purchased for warehouses (and subsequent issue to operational departments)
Department of Health,NHS Blood and Transplant,01/03/2018,INVENTORY MATERIALS,NBS and ODT All Areas,MACO PHARMA UK LTD,2192859,35481.6,Items purchased for warehouses (and subsequent issue to operational departments)
Department of Health,NHS Blood and Transplant,01/03/2018,INVENTORY MATERIALS,NBS and ODT All Areas,MACO PHARMA UK LTD,2192873,67229.57,Items purchased for warehouses (and subsequent issue to operational departments)
Department of Health,NHS Blood and Transplant,01/03/2018,INVENTORY MATERIALS,NBS and ODT All Areas,MACO PHARMA UK LTD,2192892,29905.06,Items purchased for warehouses (and subsequent issue to operational departments)
Department of Health,NHS Blood and Transplant,01/03/2018,INVENTORY MATERIALS,NBS and ODT All Areas,MACO PHARMA UK LTD,2196088,67761.79,Items purchased for warehouses (and subsequent issue to operational departments)
Department of Health,NHS Blood and Transplant,01/03/2018,INVENTORY MATERIALS,NBS and ODT All Areas,TERUMO BCT EUROPE NV/SA,2194002,42944.26,Items purchased for warehouses (and subsequent issue to operational departments)
Department of Health,NHS Blood and Transplant,01/03/2018,INVENTORY MATERIALS,NBS and ODT All Areas,TERUMO BCT EUROPE NV/SA,2194018,33459.84,Items purchased for warehouses (and subsequent issue to operational departments)
Department of Health,NHS Blood and Transplant,01/03/2018,INVENTORY MATERIALS,NBS and ODT All Areas,TERUMO BCT EUROPE NV/SA,2194356,58598.4,Items purchased for warehouses (and subsequent issue to operational departments)
Department of Health,NHS Blood and Transplant,01/03/2018,IT SOFTWARE,Information Communication Technology,SAPIENT LTD,2193683,31913,Purchase of IT software
Department of Health,NHS Blood and Transplant,01/03/2018,PREMISES MAINTENANCE - MINOR WORKS,Estates & Facilities,WOODNUT CONSTRUCTION AND DEVELOPMENT LTD,2193716,82601.48,Minor works projects costs
Department of Health,NHS Blood and Transplant,01/03/2018,TEST KITS CMV,"Blood Supply: Manufacturing, Testing & Issue",ABBOTT LABORATORIES LTD,2175067,22621.32,For testing of donations and samples for specific markers
Department of Health,NHS Blood and Transplant,01/03/2018,TEST KITS CMV,"Blood Supply: Manufacturing, Testing & Issue",ABBOTT LABORATORIES LTD,2175081,150.22,For testing of donations and samples for specific markers
Department of Health,NHS Blood and Transplant,01/03/2018,TEST KITS CMV,"Blood Supply: Manufacturing, Testing & Issue",ABBOTT LABORATORIES LTD,2175296,22560.66,For testing of donations and samples for specific markers
Department of Health,NHS Blood and Transplant,01/03/2018,TEST KITS CMV,"Blood Supply: Manufacturing, Testing & Issue",ABBOTT LABORATORIES LTD,2175305,37739.78,For testing of donations and samples for specific markers
Department of Health,NHS Blood and Transplant,01/03/2018,TEST KITS CMV,"Blood Supply: Manufacturing, Testing & Issue",ABBOTT LABORATORIES LTD,2195361,210.88,For testing of donations and samples for specific markers
Department of Health,NHS Blood and Transplant,01/03/2018,TEST KITS CMV,"Blood Supply: Manufacturing, Testing & Issue",ABBOTT LABORATORIES LTD,2195364,30000,For testing of donations and samples for specific markers
Department of Health,NHS Blood and Transplant,01/03/2018,TEST KITS HEPB,"Blood Supply: Manufacturing, Testing & Issue",ABBOTT LABORATORIES LTD,2175067,10170.19,For testing of donations and samples for specific markers
Department of Health,NHS Blood and Transplant,01/03/2018,TEST KITS HEPB,"Blood Supply: Manufacturing, Testing & Issue",ABBOTT LABORATORIES LTD,2175081,21153.27,For testing of donations and samples for specific markers
Department of Health,NHS Blood and Transplant,01/03/2018,TEST KITS HEPB,"Blood Supply: Manufacturing, Testing & Issue",ABBOTT LABORATORIES LTD,2175296,13194.63,For testing of donations and samples for specific markers
Department of Health,NHS Blood and Transplant,01/03/2018,TEST KITS HEPB,"Blood Supply: Manufacturing, Testing & Issue",ABBOTT LABORATORIES LTD,2175305,43419.87,For testing of donations and samples for specific markers
Department of Health,NHS Blood and Transplant,01/03/2018,TEST KITS HEPB,"Blood Supply: Manufacturing, Testing & Issue",ABBOTT LABORATORIES LTD,2195361,11373.08,For testing of donations and samples for specific markers
Department of Health,NHS Blood and Transplant,01/03/2018,TEST KITS HEPB,"Blood Supply: Manufacturing, Testing & Issue",ABBOTT LABORATORIES LTD,2195364,23379.93,For testing of donations and samples for specific markers
Department of Health,NHS Blood and Transplant,01/03/2018,TEST KITS HEPC,"Blood Supply: Manufacturing, Testing & Issue",ABBOTT LABORATORIES LTD,2175067,88106.65,For testing of donations and samples for specific markers
Department of Health,NHS Blood and Transplant,01/03/2018,TEST KITS HEPC,"Blood Supply: Manufacturing, Testing & Issue",ABBOTT LABORATORIES LTD,2175081,156609,For testing of donations and samples for specific markers
Department of Health,NHS Blood and Transplant,01/03/2018,TEST KITS HEPC,"Blood Supply: Manufacturing, Testing & Issue",ABBOTT LABORATORIES LTD,2175296,78304.5,For testing of donations and samples for specific markers
Department of Health,NHS Blood and Transplant,01/03/2018,TEST KITS HEPC,"Blood Supply: Manufacturing, Testing & Issue",ABBOTT LABORATORIES LTD,2175305,313218,For testing of donations and samples for specific markers
Department of Health,NHS Blood and Transplant,01/03/2018,TEST KITS HEPC,"Blood Supply: Manufacturing, Testing & Issue",ABBOTT LABORATORIES LTD,2195361,88176.41,For testing of donations and samples for specific markers
Department of Health,NHS Blood and Transplant,01/03/2018,TEST KITS HEPC,"Blood Supply: Manufacturing, Testing & Issue",ABBOTT LABORATORIES LTD,2195364,164439.45,For testing of donations and samples for specific markers
Department of Health,NHS Blood and Transplant,01/03/2018,TEST KITS HIV,"Blood Supply: Manufacturing, Testing & Issue",ABBOTT LABORATORIES LTD,2175067,12867.87,For testing of donations and samples for specific markers
Department of Health,NHS Blood and Transplant,01/03/2018,TEST KITS HIV,"Blood Supply: Manufacturing, Testing & Issue",ABBOTT LABORATORIES LTD,2175081,26665.8,For testing of donations and samples for specific markers
Department of Health,NHS Blood and Transplant,01/03/2018,TEST KITS HIV,"Blood Supply: Manufacturing, Testing & Issue",ABBOTT LABORATORIES LTD,2175296,16835.61,For testing of donations and samples for specific markers
Department of Health,NHS Blood and Transplant,01/03/2018,TEST KITS HIV,"Blood Supply: Manufacturing, Testing & Issue",ABBOTT LABORATORIES LTD,2175305,52061.8,For testing of donations and samples for specific markers
Department of Health,NHS Blood and Transplant,01/03/2018,TEST KITS HIV,"Blood Supply: Manufacturing, Testing & Issue",ABBOTT LABORATORIES LTD,2195361,11687.63,For testing of donations and samples for specific markers
Department of Health,NHS Blood and Transplant,01/03/2018,TEST KITS HIV,"Blood Supply: Manufacturing, Testing & Issue",ABBOTT LABORATORIES LTD,2195364,26665.8,For testing of donations and samples for specific markers
Department of Health,NHS Blood and Transplant,01/03/2018,TEST KITS HTLV,"Blood Supply: Manufacturing, Testing & Issue",ABBOTT LABORATORIES LTD,2175067,5400,For testing of donations and samples for specific markers
Department of Health,NHS Blood and Transplant,01/03/2018,TEST KITS HTLV,"Blood Supply: Manufacturing, Testing & Issue",ABBOTT LABORATORIES LTD,2175081,9000,For testing of donations and samples for specific markers
Department of Health,NHS Blood and Transplant,01/03/2018,TEST KITS HTLV,"Blood Supply: Manufacturing, Testing & Issue",ABBOTT LABORATORIES LTD,2175296,6480,For testing of donations and samples for specific markers
Department of Health,NHS Blood and Transplant,01/03/2018,TEST KITS HTLV,"Blood Supply: Manufacturing, Testing & Issue",ABBOTT LABORATORIES LTD,2175305,16200,For testing of donations and samples for specific markers
Department of Health,NHS Blood and Transplant,01/03/2018,TEST KITS HTLV,"Blood Supply: Manufacturing, Testing & Issue",ABBOTT LABORATORIES LTD,2195361,7200,For testing of donations and samples for specific markers
Department of Health,NHS Blood and Transplant,01/03/2018,TEST KITS HTLV,"Blood Supply: Manufacturing, Testing & Issue",ABBOTT LABORATORIES LTD,2195364,10800,For testing of donations and samples for specific markers
Department of Health,NHS Blood and Transplant,01/03/2018,TEST KITS IMMUNE,"Blood Supply: Manufacturing, Testing & Issue",ABBOTT LABORATORIES LTD,2193942,-135022.08,For testing of donations and samples for specific markers
Department of Health,NHS Blood and Transplant,01/03/2018,TEST KITS NAT,"Blood Supply: Manufacturing, Testing & Issue",ROCHE DIAGNOSTICS LIMITED,2193363,236075.85,For testing of donations and samples for specific markers
Department of Health,NHS Blood and Transplant,01/03/2018,TEST KITS NAT,"Blood Supply: Manufacturing, Testing & Issue",ROCHE DIAGNOSTICS LIMITED,2193364,229069.23,For testing of donations and samples for specific markers
Department of Health,NHS Blood and Transplant,01/03/2018,TEST KITS OTHER,"Blood Supply: Manufacturing, Testing & Issue",ABBOTT LABORATORIES LTD,2175067,2363.4,For testing of donations and samples for specific markers
Department of Health,NHS Blood and Transplant,01/03/2018,TEST KITS OTHER,"Blood Supply: Manufacturing, Testing & Issue",ABBOTT LABORATORIES LTD,2175081,2363.4,For testing of donations and samples for specific markers
Department of Health,NHS Blood and Transplant,01/03/2018,TEST KITS TPHA,"Blood Supply: Manufacturing, Testing & Issue",ABBOTT LABORATORIES LTD,2175315,5070.24,For testing of donations and samples for specific markers
Department of Health,NHS Blood and Transplant,01/03/2018,TRAINING AND CONFERENCES ADM,General and Other,QA LTD,2191515,79698,Training and Conference costs for Admin Staff
Department of Health,NHS Blood and Transplant,07/03/2018,PURCHASING CARD SUSPENSE,NBS and ODT All Areas,RBS Mastercard,DD,195416.04,Purchasing Card Expenditure
Department of Health,NHS Blood and Transplant,09/03/2018,CAPITAL PURCHASES ACCOUNT,NBS and ODT All Areas,ACCLAIM CONTRACTS LTD,2197458,56773.95,Purchase of Fixed Assets
Department of Health,NHS Blood and Transplant,09/03/2018,CAPITAL PURCHASES ACCOUNT,NBS and ODT All Areas,ADCOCK REFRIG & AIR COND LTD,2196002,73866.77,Purchase of Fixed Assets
Department of Health,NHS Blood and Transplant,09/03/2018,CAPITAL PURCHASES ACCOUNT,NBS and ODT All Areas,FISHER SCIENTIFIC UK LTD,2195605,69078.47,Purchase of Fixed Assets
Department of Health,NHS Blood and Transplant,09/03/2018,CAPITAL PURCHASES ACCOUNT,NBS and ODT All Areas,KIER INFRASTRUCTURE & OVERSEAS LTD T/A KIER HEALTH,2196563,51673.75,Purchase of Fixed Assets
Department of Health,NHS Blood and Transplant,09/03/2018,CAPITAL PURCHASES ACCOUNT,NBS and ODT All Areas,MEDICAL SUPPLY CO. LTD,2195587,79639.32,Purchase of Fixed Assets
Department of Health,NHS Blood and Transplant,09/03/2018,CAPITAL PURCHASES ACCOUNT,NBS and ODT All Areas,THAMES CRYOGENICS LTD,2198301,33900.48,Purchase of Fixed Assets
Department of Health,NHS Blood and Transplant,09/03/2018,CAPITAL PURCHASES ACCOUNT,NBS and ODT All Areas,THERAKOS (UK) LTD,2198305,36000,Purchase of Fixed Assets
Department of Health,NHS Blood and Transplant,09/03/2018,COURIER & DELIVERY CHARGES,Diagnostic & Therapeutic Services,PDP COURIER SERVICES LTD,2192615,24470,External courier and transport company costs
Department of Health,NHS Blood and Transplant,09/03/2018,COURIER & DELIVERY CHARGES,Organ Donation & Transplantation,AMVALE LTD,2195577,22434.96,External courier and transport company costs
Department of Health,NHS Blood and Transplant,09/03/2018,COURIER & DELIVERY CHARGES,Organ Donation & Transplantation,AMVALE LTD,2197428,23989.85,External courier and transport company costs
Department of Health,NHS Blood and Transplant,09/03/2018,COURIER & DELIVERY CHARGES,Organ Donation & Transplantation,AMVALE LTD,2197536,27295.51,External courier and transport company costs
Department of Health,NHS Blood and Transplant,09/03/2018,COURIER & DELIVERY CHARGES,Organ Donation & Transplantation,AMVALE LTD,2197542,21343.46,External courier and transport company costs
Department of Health,NHS Blood and Transplant,09/03/2018,COURIER & DELIVERY CHARGES,Organ Donation & Transplantation,AMVALE LTD,2197547,25776.76,External courier and transport company costs
Department of Health,NHS Blood and Transplant,09/03/2018,COURIER & DELIVERY CHARGES,Organ Donation & Transplantation,AMVALE LTD,2197552,21291.88,External courier and transport company costs
Department of Health,NHS Blood and Transplant,09/03/2018,COURIER & DELIVERY CHARGES,Organ Donation & Transplantation,AMVALE LTD,2197622,23221.02,External courier and transport company costs
Department of Health,NHS Blood and Transplant,09/03/2018,COURIER & DELIVERY CHARGES,Organ Donation & Transplantation,AMVALE LTD,2197634,26121.97,External courier and transport company costs
Department of Health,NHS Blood and Transplant,09/03/2018,COURIER & DELIVERY CHARGES,Organ Donation & Transplantation,AMVALE LTD,2198618,24314.91,External courier and transport company costs
Department of Health,NHS Blood and Transplant,09/03/2018,ELECTRICITY,Estates & Facilities,EDF ENERGY,2197675,31352.22,Electricity costs
Department of Health,NHS Blood and Transplant,09/03/2018,ELECTRICITY,Estates & Facilities,EDF ENERGY,2197682,70385.89,Electricity costs
Department of Health,NHS Blood and Transplant,09/03/2018,ELECTRICITY,Estates & Facilities,EDF ENERGY,2197684,36158.23,Electricity costs
Department of Health,NHS Blood and Transplant,09/03/2018,EXTERNAL MARKETING SERVICES,Organ Donation & Transplantation,ENGINE PARTNERS UK LLP,2191746,24866.2,"External costs of marketing services, primarily relating to communications with donors"
Department of Health,NHS Blood and Transplant,09/03/2018,EXTERNAL SERVICES OTHER,General and Other,CAPGEMINI UK PLC,2194114,24918.14,External costs of providing other services
Department of Health,NHS Blood and Transplant,09/03/2018,EXTERNAL SERVICES OTHER,General and Other,REPLY LIMITED,2195420,26380,External costs of providing other services
Department of Health,NHS Blood and Transplant,09/03/2018,INVENTORY MATERIALS,NBS and ODT All Areas,MACO PHARMA UK LTD,2195610,63495.94,Items purchased for warehouses (and subsequent issue to operational departments)
Department of Health,NHS Blood and Transplant,09/03/2018,INVENTORY MATERIALS,NBS and ODT All Areas,TERUMO BCT EUROPE NV/SA,2167078,64972.8,Items purchased for warehouses (and subsequent issue to operational departments)
Department of Health,NHS Blood and Transplant,09/03/2018,INVENTORY MATERIALS,NBS and ODT All Areas,TERUMO BCT EUROPE NV/SA,2195666,40608,Items purchased for warehouses (and subsequent issue to operational departments)
Department of Health,NHS Blood and Transplant,09/03/2018,INVENTORY MATERIALS,NBS and ODT All Areas,THERAKOS (UK) LTD,2194083,33696,Items purchased for warehouses (and subsequent issue to operational departments)
Department of Health,NHS Blood and Transplant,09/03/2018,INVENTORY MATERIALS,NBS and ODT All Areas,THERAKOS (UK) LTD,2194084,33696,Items purchased for warehouses (and subsequent issue to operational departments)
Department of Health,NHS Blood and Transplant,09/03/2018,MANAGEMENT CONSULTANTS,General and Other,BT PUBLIC SECTOR STORE,2190962,30769,Management consultancy fees incurred
Department of Health,NHS Blood and Transplant,09/03/2018,MEDIA ADVERTISING,Marketing and Communications,CARAT A TRADING DIVISION OF DENTSU AEGIS UK LTD,2194814,49999.51,Media advertising costs
Department of Health,NHS Blood and Transplant,15/03/2018,NCG FUNDED NON-PAY INITIATIVES,General and Other,HM REVENUE & CUSTOMS,2200063,65535,Apprenticeship Levy
Department of Health,NHS Blood and Transplant,16/03/2018,CAPITAL CHARGES CONTROL,NBS and ODT All Areas,DEPARTMENT OF HEALTH,2764,8772000,Payment to DH for capital charges amounts collected from customers through prices
Department of Health,NHS Blood and Transplant,16/03/2018,ORGAN RETREIVAL CONTRACTS,Organ Donation & Transplantation,UNIVERSITY HOSPITALS BIRMINGHAM NHS FOUNDATION TRUST,2766,977274,Contracts with other NHS bodies for organ retrieval teams
Department of Health,NHS Blood and Transplant,16/03/2018,COURIER & DELIVERY CHARGES,Organ Donation & Transplantation,UNIVERSITY HOSPITALS BIRMINGHAM NHS FOUNDATION TRUST,2766,306013,Transport costs
Department of Health,NHS Blood and Transplant,16/03/2018,ORGAN RETREIVAL CONTRACTS,Organ Donation & Transplantation,UNIVERSITY HOSPITALS BIRMINGHAM NHS FOUNDATION TRUST,2766,671059,Contracts with other NHS bodies for organ retrieval teams
Department of Health,NHS Blood and Transplant,16/03/2018,COURIER & DELIVERY CHARGES,Organ Donation & Transplantation,UNIVERSITY HOSPITALS BIRMINGHAM NHS FOUNDATION TRUST,2766,255449,Transport costs
Department of Health,NHS Blood and Transplant,16/03/2018,ORGAN RETREIVAL CONTRACTS,Organ Donation & Transplantation,CAMBRIDGE UNIVERSITY HOSPITALS NHS FOUNDATION TRUST,2766,343690,Contracts with other NHS bodies for organ retrieval teams
Department of Health,NHS Blood and Transplant,16/03/2018,ORGAN RETREIVAL CONTRACTS,Organ Donation & Transplantation,CENTRAL MANCHESTER UNI HOSPITALS NHS FOUNDATION TRUST,2766,171110,Contracts with other NHS bodies for organ retrieval teams
Department of Health,NHS Blood and Transplant,16/03/2018,COURIER & DELIVERY CHARGES,Organ Donation & Transplantation,CENTRAL MANCHESTER UNI HOSPITALS NHS FOUNDATION TRUST,2766,45699,Transport costs
Department of Health,NHS Blood and Transplant,16/03/2018,ORGAN RETREIVAL CONTRACTS,Organ Donation & Transplantation,CARDIFF AND VALE UNIVERSITY HEALTH BOARD,2766,97516.25,Contracts with other NHS bodies for organ retrieval teams
Department of Health,NHS Blood and Transplant,16/03/2018,ORGAN RETREIVAL CONTRACTS,Organ Donation & Transplantation,ROYAL BROMPTON AND HAREFIELD NHS FT,2766,181076.75,Contracts with other NHS bodies for organ retrieval teams
Department of Health,NHS Blood and Transplant,16/03/2018,ORGAN RETREIVAL CONTRACTS,Organ Donation & Transplantation,KING'S COLLEGE HOSPITAL NHS FOUNDATION TRUST,2766,387046.5,Contracts with other NHS bodies for organ retrieval teams
Department of Health,NHS Blood and Transplant,16/03/2018,COURIER & DELIVERY CHARGES,Organ Donation & Transplantation,KING'S COLLEGE HOSPITAL NHS FOUNDATION TRUST,2766,125557,Transport costs
Department of Health,NHS Blood and Transplant,16/03/2018,ORGAN RETREIVAL CONTRACTS,Organ Donation & Transplantation,THE LEEDS TEACHING HOSPITALS NHS TRUST,2766,170130,Contracts with other NHS bodies for organ retrieval teams
Department of Health,NHS Blood and Transplant,16/03/2018,ORGAN RETREIVAL CONTRACTS,Organ Donation & Transplantation,THE NEWCASTLE UPON TYNE HOSPITALS NHS FOUNDATION TRUST,2766,362263,Contracts with other NHS bodies for organ retrieval teams
Department of Health,NHS Blood and Transplant,16/03/2018,COURIER & DELIVERY CHARGES,Organ Donation & Transplantation,THE NEWCASTLE UPON TYNE HOSPITALS NHS FOUNDATION TRUST,2766,238009,Transport costs
Department of Health,NHS Blood and Transplant,16/03/2018,ORGAN RETREIVAL CONTRACTS,Organ Donation & Transplantation,THE NEWCASTLE UPON TYNE HOSPITALS NHS FOUNDATION TRUST,2766,205232,Contracts with other NHS bodies for organ retrieval teams
Department of Health,NHS Blood and Transplant,16/03/2018,COURIER & DELIVERY CHARGES,Organ Donation & Transplantation,THE NEWCASTLE UPON TYNE HOSPITALS NHS FOUNDATION TRUST,2766,262488,Transport costs
Department of Health,NHS Blood and Transplant,16/03/2018,ORGAN RETREIVAL CONTRACTS,Organ Donation & Transplantation,OXFORD UNIVERSITY HOSPITALS NHS FOUNDATION TRUST,2766,178526,Contracts with other NHS bodies for organ retrieval teams
Department of Health,NHS Blood and Transplant,16/03/2018,ORGAN RETREIVAL CONTRACTS,Organ Donation & Transplantation,ROYAL PAPWORTH HOSPITAL NHS FOUNDATION TRUST,2766,251999,Contracts with other NHS bodies for organ retrieval teams
Department of Health,NHS Blood and Transplant,16/03/2018,ORGAN RETREIVAL CONTRACTS,Organ Donation & Transplantation,ROYAL FREE LONDON NHS FOUNDATION TRUST,2766,193523.25,Contracts with other NHS bodies for organ retrieval teams
Department of Health,NHS Blood and Transplant,16/03/2018,ORGAN RETREIVAL CONTRACTS,Organ Donation & Transplantation,NHS LOTHIAN,2766,346303,Contracts with other NHS bodies for organ retrieval teams
Department of Health,NHS Blood and Transplant,16/03/2018,ORGAN RETREIVAL CONTRACTS,Organ Donation & Transplantation,NHS SCOTLAND - GOLDEN JUBILEE NATIONAL HOSPITAL,2766,167296,Contracts with other NHS bodies for organ retrieval teams
Department of Health,NHS Blood and Transplant,16/03/2018,ORGAN RETREIVAL CONTRACTS,Organ Donation & Transplantation,UNIVERSITY HOSPITAL OF SOUTH MANCHESTER NHS FOUNDATION TRUST,2766,172775.5,Contracts with other NHS bodies for organ retrieval teams
Department of Health,NHS Blood and Transplant,16/03/2018,AVERAGE COST VARIANCE,General and Other,ALLIED PUBLICITY SERVICES MANCHESTER LTD,2196226,-0.01,Difference between Purchase Order and Supplier Invoice price for Stores items
Department of Health,NHS Blood and Transplant,16/03/2018,AVERAGE COST VARIANCE,General and Other,DON WHITLEY SCIENTIFIC LTD,2195088,0.01,Difference between Purchase Order and Supplier Invoice price for Stores items
Department of Health,NHS Blood and Transplant,16/03/2018,CAMPAIGN EVENTS,Marketing and Communications,CARAT A TRADING DIVISION OF DENTSU AEGIS UK LTD,2196214,117550.26,Campaign events relating to recriuitment of donors
Department of Health,NHS Blood and Transplant,16/03/2018,CAPITAL PURCHASES ACCOUNT,NBS and ODT All Areas,DON WHITLEY SCIENTIFIC LTD,2195088,38659.42,Purchase of Fixed Assets
Department of Health,NHS Blood and Transplant,16/03/2018,CAPITAL PURCHASES ACCOUNT,NBS and ODT All Areas,TECHNO-PATH (DISTRIBUTION) LTD,2200090,254400,Purchase of Fixed Assets
Department of Health,NHS Blood and Transplant,16/03/2018,CAPITAL PURCHASES ACCOUNT,NBS and ODT All Areas,TECHNO-PATH (DISTRIBUTION) LTD,2200092,407040,Purchase of Fixed Assets
Department of Health,NHS Blood and Transplant,16/03/2018,CAPITAL PURCHASES ACCOUNT,NBS and ODT All Areas,TECHNO-PATH (DISTRIBUTION) LTD,2200096,279840,Purchase of Fixed Assets
Department of Health,NHS Blood and Transplant,16/03/2018,CAPITAL PURCHASES ACCOUNT,NBS and ODT All Areas,VEOLIA WATER TECHNOLOGIES,2199949,75909.6,Purchase of Fixed Assets
Department of Health,NHS Blood and Transplant,16/03/2018,CAPITAL PURCHASES ACCOUNT,NBS and ODT All Areas,WATSON-MARLOW LTD,2200088,76163.4,Purchase of Fixed Assets
Department of Health,NHS Blood and Transplant,16/03/2018,CLEANING CONTRACT,Estates & Facilities,MITIE TECHNICAL FACILITIES MANAGEMENT,2198926,14006.38,External cleaning contracts
Department of Health,NHS Blood and Transplant,16/03/2018,COURIER & DELIVERY CHARGES,Diagnostic & Therapeutic Services,TNT EXPRESS UK LTD,2199256,14154.15,External courier and transport company costs
Department of Health,NHS Blood and Transplant,16/03/2018,COURIER & DELIVERY CHARGES,Diagnostic & Therapeutic Services,TNT EXPRESS UK LTD,2199770,12639.56,External courier and transport company costs
Department of Health,NHS Blood and Transplant,16/03/2018,COURIER & DELIVERY CHARGES,Diagnostic & Therapeutic Services,TNT EXPRESS UK LTD,2199777,11829.07,External courier and transport company costs
Department of Health,NHS Blood and Transplant,16/03/2018,COURIER & DELIVERY CHARGES,Logistics,TNT EXPRESS UK LTD,2199256,64437.28,External courier and transport company costs
Department of Health,NHS Blood and Transplant,16/03/2018,COURIER & DELIVERY CHARGES,Logistics,TNT EXPRESS UK LTD,2199770,57515.02,External courier and transport company costs
Department of Health,NHS Blood and Transplant,16/03/2018,COURIER & DELIVERY CHARGES,Logistics,TNT EXPRESS UK LTD,2199777,62185.36,External courier and transport company costs
Department of Health,NHS Blood and Transplant,16/03/2018,EXTERNAL MAILING SERVICES,Blood Supply: Blood Donation,ALLIED PUBLICITY SERVICES MANCHESTER LTD,2196226,281.73,"External costs of mailing services, primarily relating to communications with donors"
Department of Health,NHS Blood and Transplant,16/03/2018,EXTERNAL MARKETING SERVICES,Organ Donation & Transplantation,CARAT A TRADING DIVISION OF DENTSU AEGIS UK LTD,2196202,54826.61,"External costs of marketing services, primarily relating to communications with donors"
Department of Health,NHS Blood and Transplant,16/03/2018,EXTERNAL SERVICES OTHER,Organ Donation & Transplantation,CAPGEMINI UK PLC,2194158,32107,External costs of providing other services
Department of Health,NHS Blood and Transplant,16/03/2018,EXTERNAL SERVICES OTHER,Organ Donation & Transplantation,NHS LOTHIAN,2198378,32155.91,External costs of providing other services
Department of Health,NHS Blood and Transplant,16/03/2018,EXTERNAL SERVICES OTHER,Organ Donation & Transplantation,REPLY LIMITED,2199725,74697,External costs of providing other services
Department of Health,NHS Blood and Transplant,16/03/2018,EXTERNAL SERVICES OTHER,Research & Development,UNIVERSITY OF BRISTOL,2196417,26060,External costs of providing other services
Department of Health,NHS Blood and Transplant,16/03/2018,FURNITURE & FITTINGS,Estates & Facilities,CBRE MANAGED SERVICES LTD FORMERLY NORLAND MANAGED SERVICES,2196626,30444.95,Costs of furniture and fittings
Department of Health,NHS Blood and Transplant,16/03/2018,INVENTORY MATERIALS,NBS and ODT All Areas,HAEMONETICS LIMITED,2163619,43545.6,Items purchased for warehouses (and subsequent issue to operational departments)
Department of Health,NHS Blood and Transplant,16/03/2018,INVENTORY MATERIALS,NBS and ODT All Areas,HAEMONETICS LIMITED,2191557,29914.56,Items purchased for warehouses (and subsequent issue to operational departments)
Department of Health,NHS Blood and Transplant,16/03/2018,INVENTORY MATERIALS,NBS and ODT All Areas,MACO PHARMA UK LTD,2196861,54577.15,Items purchased for warehouses (and subsequent issue to operational departments)
Department of Health,NHS Blood and Transplant,16/03/2018,INVENTORY MATERIALS,NBS and ODT All Areas,TERUMO BCT EUROPE NV/SA,2197181,58019.33,Items purchased for warehouses (and subsequent issue to operational departments)
Department of Health,NHS Blood and Transplant,16/03/2018,INVENTORY MATERIALS,NBS and ODT All Areas,THERAKOS (UK) LTD,2195502,33696,Items purchased for warehouses (and subsequent issue to operational departments)
Department of Health,NHS Blood and Transplant,16/03/2018,IT SOFTWARE,Information Communication Technology,SAVANT LIMITED,2198763,78148.8,Purchase of IT software
Department of Health,NHS Blood and Transplant,16/03/2018,IT SOFTWARE,Information Communication Technology,SOFTCAT LTD,2196444,81397.2,Purchase of IT software
Department of Health,NHS Blood and Transplant,16/03/2018,IT SOFTWARE MAINTENANCE,Information Communication Technology,SAVANT LIMITED,2197528,104500,Maintenance costs of IT software
Department of Health,NHS Blood and Transplant,16/03/2018,MANAGEMENT CONSULTANTS,General and Other,BT GLOBAL SERVICES,2199167,46597.33,Management consultancy fees incurred - Migration phase 3&4
Department of Health,NHS Blood and Transplant,16/03/2018,MEDIA ADVERTISING,Marketing and Communications,CARAT A TRADING DIVISION OF DENTSU AEGIS UK LTD,2194188,58653.36,Media advertising costs
Department of Health,NHS Blood and Transplant,16/03/2018,MEDIA ADVERTISING,Marketing and Communications,CARAT A TRADING DIVISION OF DENTSU AEGIS UK LTD,2196210,-26421.07,Media advertising costs
Department of Health,NHS Blood and Transplant,16/03/2018,MEDIA ADVERTISING,Marketing and Communications,CARAT A TRADING DIVISION OF DENTSU AEGIS UK LTD,2196212,26993.34,Media advertising costs
Department of Health,NHS Blood and Transplant,16/03/2018,OCCUPATIONAL HEALTH COSTS,Human Resources,OH ASSIST LIMITED,2194321,22186.5,External cost of occupational health services contract
Department of Health,NHS Blood and Transplant,16/03/2018,OTHER PROFESSIONAL FEES,Clinical,DEPARTMENT OF HEALTH,2199268,50000,Other professional fees - analytical support
Department of Health,NHS Blood and Transplant,16/03/2018,POSTAGE,Blood Supply: Blood Donation,ALLIED PUBLICITY SERVICES MANCHESTER LTD,2196226,50472.2,Postage costs
Department of Health,NHS Blood and Transplant,16/03/2018,PREMISES MAINTENANCE - MINOR WORKS,Estates & Facilities,CBRE MANAGED SERVICES LTD FORMERLY NORLAND MANAGED SERVICES,2196621,25000,Minor works projects costs
Department of Health,NHS Blood and Transplant,16/03/2018,PREMISES MAINTENANCE - MINOR WORKS,Estates & Facilities,CBRE MANAGED SERVICES LTD FORMERLY NORLAND MANAGED SERVICES,2196627,34091.1,Minor works projects costs
Department of Health,NHS Blood and Transplant,16/03/2018,PREMISES MAINTENANCE - MINOR WORKS,Estates & Facilities,CBRE MANAGED SERVICES LTD FORMERLY NORLAND MANAGED SERVICES,2196628,30000,Minor works projects costs
Department of Health,NHS Blood and Transplant,16/03/2018,PREMISES MAINTENANCE - PLANNED,Estates & Facilities,MITIE TECHNICAL FACILITIES MANAGEMENT,2198926,50773.53,Planned / scheduled premises maintenace costs
Department of Health,NHS Blood and Transplant,16/03/2018,RENT/LEASE,Estates & Facilities,DUCHY OF LANCASTER,2198766,123000,Property rent costs
Department of Health,NHS Blood and Transplant,16/03/2018,RENT/LEASE,Estates & Facilities,EDDISONS,2198739,38250,Property rent costs
Department of Health,NHS Blood and Transplant,16/03/2018,RENT/LEASE,Estates & Facilities,FI REAL ESTATE MANAGEMENT LIMITED,2198400,39450,Property rent costs
Department of Health,NHS Blood and Transplant,16/03/2018,RENT/LEASE,Estates & Facilities,GBR PHOENIX BEARD,2199323,30000,Property rent costs
Department of Health,NHS Blood and Transplant,16/03/2018,RENT/LEASE,Estates & Facilities,OXFORD RADCLIFFE HOSPITALS NHS TRUST,2198720,115250,Property rent costs
Department of Health,NHS Blood and Transplant,20/03/2018,ODT DONOR MANAGEMENT REIMBURSEMENT,Organ Donation & Transplantation,KING'S COLLEGE HOSPITAL NHS FOUNDATION TRUST,2768,29204,Reimbursement to other NHS bodies for organ donation scheme related costs
Department of Health,NHS Blood and Transplant,20/03/2018,ODT DONOR MANAGEMENT REIMBURSEMENT,Organ Donation & Transplantation,CAMBRIDGE UNIVERSITY HOSPITALS NHS FOUNDATION TRUST,2768,27118,Reimbursement to other NHS bodies for organ donation scheme related costs
Department of Health,NHS Blood and Transplant,20/03/2018,ODT DONOR MANAGEMENT REIMBURSEMENT,Organ Donation & Transplantation,THE LEEDS TEACHING HOSPITALS NHS TRUST,2768,27118,Reimbursement to other NHS bodies for organ donation scheme related costs
Department of Health,NHS Blood and Transplant,21/03/2018,COURIER & DELIVERY CHARGES,Organ Donation & Transplantation,ROYAL PAPWORTH HOSPITAL NHS FOUNDATION TRUST,2769,27000,Transport costs
Department of Health,NHS Blood and Transplant,23/03/2018,AVERAGE COST VARIANCE,General and Other,LEICA MICROSYSTEMS (UK) LTD,2202607,-0.02,Difference between Purchase Order and Supplier Invoice price for Stores items
Department of Health,NHS Blood and Transplant,23/03/2018,AVERAGE COST VARIANCE,General and Other,VODAFONE,2197083,-0.01,Difference between Purchase Order and Supplier Invoice price for Stores items
Department of Health,NHS Blood and Transplant,23/03/2018,AVERAGE COST VARIANCE,Organ Donation & Transplantation,UNIVERSITY OF CAMBRIDGE,2193955,47930,Difference between Purchase Order and Supplier Invoice price for Stores items
Department of Health,NHS Blood and Transplant,23/03/2018,CAPITAL PURCHASES ACCOUNT,NBS and ODT All Areas,FISHER SCIENTIFIC UK LTD,2202751,154562.1,Purchase of Fixed Assets
Department of Health,NHS Blood and Transplant,23/03/2018,CAPITAL PURCHASES ACCOUNT,NBS and ODT All Areas,FISHER SCIENTIFIC UK LTD,2202752,264963.6,Purchase of Fixed Assets
Department of Health,NHS Blood and Transplant,23/03/2018,CAPITAL PURCHASES ACCOUNT,NBS and ODT All Areas,LEICA MICROSYSTEMS (UK) LTD,2202607,249902.14,Purchase of Fixed Assets
Department of Health,NHS Blood and Transplant,23/03/2018,CLEANING CONTRACT,Estates & Facilities,REGENT CLEANING SERVICES,2198213,69942.35,External cleaning contracts
Department of Health,NHS Blood and Transplant,23/03/2018,CLEANING CONTRACT,Estates & Facilities,REGENT CLEANING SERVICES,2198217,55174.1,External cleaning contracts
Department of Health,NHS Blood and Transplant,23/03/2018,CLEANING CONTRACT,Estates & Facilities,REGENT CLEANING SERVICES,2198266,55174.1,External cleaning contracts
Department of Health,NHS Blood and Transplant,23/03/2018,CLEANING CONTRACT,Estates & Facilities,REGENT CLEANING SERVICES,2198267,69942.35,External cleaning contracts
Department of Health,NHS Blood and Transplant,23/03/2018,CONSULTANT,Clinical,UNIVERSITY OF CAMBRIDGE,2196357,71520.26,Reimbursement to other NHS bodies for Medical Consultant staff
Department of Health,NHS Blood and Transplant,23/03/2018,COURIER & DELIVERY CHARGES,Diagnostic & Therapeutic Services,TNT EXPRESS UK LTD,2201406,16861.35,External courier and transport company costs
Department of Health,NHS Blood and Transplant,23/03/2018,COURIER & DELIVERY CHARGES,Logistics,TNT EXPRESS UK LTD,2201406,65537.41,External courier and transport company costs
Department of Health,NHS Blood and Transplant,23/03/2018,COURIER & DELIVERY CHARGES,Organ Donation & Transplantation,AMVALE LTD,2197540,21869.92,External courier and transport company costs
Department of Health,NHS Blood and Transplant,23/03/2018,COURIER & DELIVERY CHARGES,Organ Donation & Transplantation,AMVALE LTD,2197696,28710.86,External courier and transport company costs
Department of Health,NHS Blood and Transplant,23/03/2018,COURIER & DELIVERY CHARGES,Organ Donation & Transplantation,AMVALE LTD,2197722,24620.54,External courier and transport company costs
Department of Health,NHS Blood and Transplant,23/03/2018,COURIER & DELIVERY CHARGES,Organ Donation & Transplantation,AMVALE LTD,2197727,25224.63,External courier and transport company costs
Department of Health,NHS Blood and Transplant,23/03/2018,COURIER & DELIVERY CHARGES,Organ Donation & Transplantation,AMVALE LTD,2197924,26352.49,External courier and transport company costs
Department of Health,NHS Blood and Transplant,23/03/2018,COURIER & DELIVERY CHARGES,Organ Donation & Transplantation,AMVALE LTD,2199231,23274.6,External courier and transport company costs
Department of Health,NHS Blood and Transplant,23/03/2018,COURIER & DELIVERY CHARGES,Organ Donation & Transplantation,AMVALE LTD,2201930,24095.12,External courier and transport company costs
Department of Health,NHS Blood and Transplant,23/03/2018,EXTERNAL MAILING SERVICES,Blood Supply: Blood Donation,ALLIED PUBLICITY SERVICES MANCHESTER LTD,2198937,149.88,"External costs of mailing services, primarily relating to communications with donors"
Department of Health,NHS Blood and Transplant,23/03/2018,EXTERNAL MAILING SERVICES,Blood Supply: Blood Donation,ALLIED PUBLICITY SERVICES MANCHESTER LTD,2200497,156.2,"External costs of mailing services, primarily relating to communications with donors"
Department of Health,NHS Blood and Transplant,23/03/2018,EXTERNAL MAILING SERVICES,Organ Donation & Transplantation,ALLIED PUBLICITY SERVICES MANCHESTER LTD,2198940,14766.63,"External costs of mailing services, primarily relating to communications with donors"
Department of Health,NHS Blood and Transplant,23/03/2018,EXTERNAL MARKETING SERVICES,Blood Supply: Blood Donation,TELEPERFORMANCE LIMITED,2192375,101943.23,"External costs of marketing services, primarily relating to communications with donors"
Department of Health,NHS Blood and Transplant,23/03/2018,EXTERNAL MARKETING SERVICES,Blood Supply: Blood Donation,TELEPERFORMANCE LIMITED,2201851,185774.37,"External costs of marketing services, primarily relating to communications with donors"
Department of Health,NHS Blood and Transplant,23/03/2018,EXTERNAL MARKETING SERVICES,Marketing and Communications,TWENTYSIX LTD,2198324,23970,"External costs of marketing services, primarily relating to communications with donors"
Department of Health,NHS Blood and Transplant,23/03/2018,EXTERNAL SERVICES OTHER,General and Other,ATOS IT SERVICES UK LTD,2154238,24197.36,External costs of providing other services
Department of Health,NHS Blood and Transplant,23/03/2018,EXTERNAL SERVICES OTHER,General and Other,ATOS IT SERVICES UK LTD,2195991,24353.8,External costs of providing other services
Department of Health,NHS Blood and Transplant,23/03/2018,EXTERNAL SERVICES OTHER,General and Other,CAPGEMINI UK PLC,2194149,45212,External costs of providing other services
Department of Health,NHS Blood and Transplant,23/03/2018,EXTERNAL SERVICES OTHER,General and Other,CAPGEMINI UK PLC,2194152,33230,External costs of providing other services
Department of Health,NHS Blood and Transplant,23/03/2018,EXTERNAL SERVICES OTHER,General and Other,CAPGEMINI UK PLC,2199036,33557,External costs of providing other services
Department of Health,NHS Blood and Transplant,23/03/2018,EXTERNAL SERVICES OTHER,General and Other,CAPGEMINI UK PLC,2200632,395878,External costs of providing other services
Department of Health,NHS Blood and Transplant,23/03/2018,EXTERNAL SERVICES OTHER,General and Other,CAPGEMINI UK PLC,2200783,43672,External costs of providing other services
Department of Health,NHS Blood and Transplant,23/03/2018,EXTERNAL SERVICES OTHER,General and Other,CAPGEMINI UK PLC,2201983,28296,External costs of providing other services
Department of Health,NHS Blood and Transplant,23/03/2018,EXTERNAL SERVICES OTHER,General and Other,REPLY LIMITED,2194089,67314,External costs of providing other services
Department of Health,NHS Blood and Transplant,23/03/2018,EXTERNAL SERVICES OTHER,General and Other,REPLY LIMITED,2199126,32635,External costs of providing other services
Department of Health,NHS Blood and Transplant,23/03/2018,EXTERNAL SERVICES OTHER,General and Other,REPLY LIMITED,2199127,26025,External costs of providing other services
Department of Health,NHS Blood and Transplant,23/03/2018,EXTERNAL SERVICES OTHER,General and Other,REPLY LIMITED,2199128,30725,External costs of providing other services
Department of Health,NHS Blood and Transplant,23/03/2018,EXTERNAL SERVICES OTHER,General and Other,REPLY LIMITED,2199130,83240,External costs of providing other services
Department of Health,NHS Blood and Transplant,23/03/2018,EXTERNAL SERVICES OTHER,General and Other,REPLY LIMITED,2199131,38160,External costs of providing other services
Department of Health,NHS Blood and Transplant,23/03/2018,EXTERNAL SERVICES OTHER,General and Other,REPLY LIMITED,2199132,68583,External costs of providing other services
Department of Health,NHS Blood and Transplant,23/03/2018,EXTERNAL SERVICES OTHER,General and Other,REPLY LIMITED,2199727,31485,External costs of providing other services
Department of Health,NHS Blood and Transplant,23/03/2018,EXTERNAL SERVICES OTHER,General and Other,REPLY LIMITED,2199736,218827.5,External costs of providing other services
Department of Health,NHS Blood and Transplant,23/03/2018,EXTERNAL SERVICES OTHER,Diagnostic & Therapeutic Services,UNIVERSITY OF BIRMINGHAM,2195634,50000,External costs of providing other services
Department of Health,NHS Blood and Transplant,23/03/2018,EXTERNAL SERVICES OTHER,Estates & Facilities,AGGREKO UK LTD,2200804,35726.75,External costs of providing other services
Department of Health,NHS Blood and Transplant,23/03/2018,EXTERNAL SERVICES OTHER,Organ Donation & Transplantation,CAPGEMINI UK PLC,2199041,35249,External costs of providing other services
Department of Health,NHS Blood and Transplant,23/03/2018,EXTERNAL SERVICES OTHER,Organ Donation & Transplantation,CAPGEMINI UK PLC,2201531,33559,External costs of providing other services
Department of Health,NHS Blood and Transplant,23/03/2018,EXTERNAL SERVICES OTHER,Organ Donation & Transplantation,REPLY LIMITED,2199046,63750,External costs of providing other services
Department of Health,NHS Blood and Transplant,23/03/2018,EXTERNAL SERVICES OTHER,Organ Donation & Transplantation,REPLY LIMITED,2199055,80613.5,External costs of providing other services
Department of Health,NHS Blood and Transplant,23/03/2018,EXTERNAL SERVICES OTHER,Organ Donation & Transplantation,T-IMPACT LIMITED,2195915,25767,External costs of providing other services
Department of Health,NHS Blood and Transplant,23/03/2018,EXTERNAL SERVICES OTHER,Research & Development,CITY UNIVERSITY LONDON.,2202076,44877,External costs of providing other services
Department of Health,NHS Blood and Transplant,23/03/2018,EXTERNAL SERVICES OTHER,Research & Development,CITY UNIVERSITY LONDON.,2202078,44844,External costs of providing other services
Department of Health,NHS Blood and Transplant,23/03/2018,EXTERNAL SERVICES OTHER,Research & Development,UNIVERSITY OF BRISTOL,2195734,26260.02,External costs of providing other services
Department of Health,NHS Blood and Transplant,23/03/2018,EXTERNAL SERVICES OTHER,Research & Development,UNIVERSITY OF CAMBRIDGE,2176772,49200,External costs of providing other services
Department of Health,NHS Blood and Transplant,23/03/2018,EXTERNAL SERVICES OTHER,Research & Development,UNIVERSITY OF CAMBRIDGE,2195717,52200,External costs of providing other services
Department of Health,NHS Blood and Transplant,23/03/2018,EXTERNAL SERVICES OTHER,Research & Development,UNIVERSITY OF CAMBRIDGE,2195718,75000,External costs of providing other services
Department of Health,NHS Blood and Transplant,23/03/2018,EXTERNAL SERVICES OTHER,Research & Development,UNIVERSITY OF CAMBRIDGE,2197349,26000,External costs of providing other services
Department of Health,NHS Blood and Transplant,23/03/2018,INVENTORY MATERIALS,NBS and ODT All Areas,HAEMONETICS LIMITED,2176670,33223.68,Items purchased for warehouses (and subsequent issue to operational departments)
Department of Health,NHS Blood and Transplant,23/03/2018,INVENTORY MATERIALS,NBS and ODT All Areas,HAEMONETICS LIMITED,2200399,30809.28,Items purchased for warehouses (and subsequent issue to operational departments)
Department of Health,NHS Blood and Transplant,23/03/2018,INVENTORY MATERIALS,NBS and ODT All Areas,MACO PHARMA UK LTD,2178889,70608.38,Items purchased for warehouses (and subsequent issue to operational departments)
Department of Health,NHS Blood and Transplant,23/03/2018,INVENTORY MATERIALS,NBS and ODT All Areas,MACO PHARMA UK LTD,2181430,35288.06,Items purchased for warehouses (and subsequent issue to operational departments)
Department of Health,NHS Blood and Transplant,23/03/2018,INVENTORY MATERIALS,NBS and ODT All Areas,MACO PHARMA UK LTD,2195581,54924.25,Items purchased for warehouses (and subsequent issue to operational departments)
Department of Health,NHS Blood and Transplant,23/03/2018,INVENTORY MATERIALS,NBS and ODT All Areas,MACO PHARMA UK LTD,2199125,31547.29,Items purchased for warehouses (and subsequent issue to operational departments)
Department of Health,NHS Blood and Transplant,23/03/2018,INVENTORY MATERIALS,NBS and ODT All Areas,MACO PHARMA UK LTD,2199141,30083.63,Items purchased for warehouses (and subsequent issue to operational departments)
Department of Health,NHS Blood and Transplant,23/03/2018,INVENTORY MATERIALS,NBS and ODT All Areas,MACO PHARMA UK LTD,2199142,81139.97,Items purchased for warehouses (and subsequent issue to operational departments)
Department of Health,NHS Blood and Transplant,23/03/2018,INVENTORY MATERIALS,NBS and ODT All Areas,MACO PHARMA UK LTD,2199144,77156.26,Items purchased for warehouses (and subsequent issue to operational departments)
Department of Health,NHS Blood and Transplant,23/03/2018,INVENTORY MATERIALS,NBS and ODT All Areas,MACO PHARMA UK LTD,2201434,44807.62,Items purchased for warehouses (and subsequent issue to operational departments)
Department of Health,NHS Blood and Transplant,23/03/2018,INVENTORY MATERIALS,NBS and ODT All Areas,MACO PHARMA UK LTD,2201436,63141.12,Items purchased for warehouses (and subsequent issue to operational departments)
Department of Health,NHS Blood and Transplant,23/03/2018,INVENTORY MATERIALS,NBS and ODT All Areas,MACO PHARMA UK LTD,2201441,65287.3,Items purchased for warehouses (and subsequent issue to operational departments)
Department of Health,NHS Blood and Transplant,23/03/2018,INVENTORY MATERIALS,NBS and ODT All Areas,TERUMO BCT EUROPE NV/SA,2182722,48729.6,Items purchased for warehouses (and subsequent issue to operational departments)
Department of Health,NHS Blood and Transplant,23/03/2018,INVENTORY MATERIALS,NBS and ODT All Areas,TERUMO BCT EUROPE NV/SA,2194362,84938.4,Items purchased for warehouses (and subsequent issue to operational departments)
Department of Health,NHS Blood and Transplant,23/03/2018,INVENTORY MATERIALS,NBS and ODT All Areas,TERUMO BCT EUROPE NV/SA,2197222,48729.6,Items purchased for warehouses (and subsequent issue to operational departments)
Department of Health,NHS Blood and Transplant,23/03/2018,INVENTORY MATERIALS,NBS and ODT All Areas,THERAKOS (UK) LTD,2197562,33696,Items purchased for warehouses (and subsequent issue to operational departments)
Department of Health,NHS Blood and Transplant,23/03/2018,IT COMMUNICATIONS LINKS,"Blood Supply: Manufacturing, Testing & Issue",VODAFONE,2197083,665.25,Costs of IT infrastructure communications links
Department of Health,NHS Blood and Transplant,23/03/2018,IT COMMUNICATIONS LINKS,Information Communication Technology,SCC - AUDIOVISUAL DIVISION,2196590,48765.48,Costs of IT infrastructure communications links
Department of Health,NHS Blood and Transplant,23/03/2018,IT COMMUNICATIONS LINKS,Information Communication Technology,VODAFONE,2197083,78198.07,Costs of IT infrastructure communications links
Department of Health,NHS Blood and Transplant,23/03/2018,IT HARDWARE,"Blood Supply: Manufacturing, Testing & Issue",VODAFONE,2197083,789.31,Purchase of IT hardware
Department of Health,NHS Blood and Transplant,23/03/2018,IT HARDWARE MAINTENANCE,Information Communication Technology,VODAFONE,2197083,1610.1,Maintenance costs of IT hardware
Department of Health,NHS Blood and Transplant,23/03/2018,IT SOFTWARE MAINTENANCE,Information Communication Technology,VODAFONE,2197083,1475.29,Maintenance costs of IT software
Department of Health,NHS Blood and Transplant,23/03/2018,MACOPHARMA BAT (NPT WITH PLASMA FILTER) BLOODPACK,"Blood Supply: Manufacturing, Testing & Issue",FRESENIUS KABI,2199250,12636,Blood Pack for collection of donations
Department of Health,NHS Blood and Transplant,23/03/2018,MACOPHARMA BAT BLOODPACK,"Blood Supply: Manufacturing, Testing & Issue",FRESENIUS KABI,2199250,7971.26,Blood Pack for collection of donations
Department of Health,NHS Blood and Transplant,23/03/2018,MACOPHARMA TAT BLOODPACK,"Blood Supply: Manufacturing, Testing & Issue",FRESENIUS KABI,2199250,7668,Blood Pack for collection of donations
Department of Health,NHS Blood and Transplant,23/03/2018,MEDIA ADVERTISING,Blood Supply: Blood Donation,CARAT A TRADING DIVISION OF DENTSU AEGIS UK LTD,2179977,58788.68,Media advertising costs
Department of Health,NHS Blood and Transplant,23/03/2018,MEDIA ADVERTISING,Marketing and Communications,CARAT A TRADING DIVISION OF DENTSU AEGIS UK LTD,2179973,55327.83,Media advertising costs
Department of Health,NHS Blood and Transplant,23/03/2018,MOBILE TELEPHONES,Information Communication Technology,VODAFONE,2197083,46686.58,Mobile telephone costs
Department of Health,NHS Blood and Transplant,23/03/2018,OTHER PROFESSIONAL FEES,Logistics,HITACHI CAPITAL,2202238,3045.7,Other professional fees - monthly management charge relating to leased fleet vehicle maintenance contract
Department of Health,NHS Blood and Transplant,23/03/2018,OTHER PROFESSIONAL FEES,Marketing and Communications,ENGINE PARTNERS UK LLP,2199320,25534.82,Other professional fees - NHSBT campaign creative development and optimisation costs
Department of Health,NHS Blood and Transplant,23/03/2018,PAGERS,Information Communication Technology,VODAFONE,2197083,16491.18,Costs incurred relating to use of pagers
Department of Health,NHS Blood and Transplant,23/03/2018,POSTAGE,Blood Supply: Blood Donation,ALLIED PUBLICITY SERVICES MANCHESTER LTD,2198937,27392.4,Postage costs
Department of Health,NHS Blood and Transplant,23/03/2018,POSTAGE,Blood Supply: Blood Donation,ALLIED PUBLICITY SERVICES MANCHESTER LTD,2200497,24186.27,Postage costs
Department of Health,NHS Blood and Transplant,23/03/2018,POSTAGE,Organ Donation & Transplantation,ALLIED PUBLICITY SERVICES MANCHESTER LTD,2198940,6493.75,Postage costs
Department of Health,NHS Blood and Transplant,23/03/2018,PREMISES MAINTENANCE - MINOR WORKS,Estates & Facilities,CRE8SPACE LTD,2198854,28483.2,Minor works projects costs
Department of Health,NHS Blood and Transplant,23/03/2018,PREMISES MAINTENANCE - MINOR WORKS,Organ Donation & Transplantation,VODAFONE,2197083,1146.95,Minor works projects costs
Department of Health,NHS Blood and Transplant,23/03/2018,PREMISES MAINTENANCE - PLANNED,Estates & Facilities,CBRE MANAGED SERVICES LTD FORMERLY NORLAND MANAGED SERVICES,2199661,119370,Planned / scheduled premises maintenace costs
Department of Health,NHS Blood and Transplant,23/03/2018,PREMISES MAINTENANCE - PLANNED,Estates & Facilities,VODAFONE,2197083,1382.29,Planned / scheduled premises maintenace costs
Department of Health,NHS Blood and Transplant,23/03/2018,TELEPHONES,Information Communication Technology,VODAFONE,2197083,55709.23,Telephone costs
Department of Health,NHS Blood and Transplant,23/03/2018,TRAVEL AND HOTEL SUSPENSE ACCOUNT,NBS and ODT All Areas,REDFERN TRAVEL LTD,2197128,289382.63,Travel and hotel costs arising from central booking system used
Department of Health,NHS Blood and Transplant,23/03/2018,UNIFORMS & PROTECTIVE CLOTHING,General and Other,MACO PHARMA UK LTD,2199141,-12.97,Consumable items used primarily during normal day to day operations
Department of Health,NHS Blood and Transplant,23/03/2018,VEHICLE REPAIRS & MAINTENANCE,Logistics,HITACHI CAPITAL,2202238,44181,External contract for fleet vehicle repairs amd maintenance
Department of Health,NHS Blood and Transplant,27/03/2018,AVERAGE COST VARIANCE,General and Other,CARAT A TRADING DIVISION OF DENTSU AEGIS UK LTD,2201701,-0.15,Difference between Purchase Order and Supplier Invoice price for Stores items
Department of Health,NHS Blood and Transplant,27/03/2018,AVERAGE COST VARIANCE,General and Other,CARAT A TRADING DIVISION OF DENTSU AEGIS UK LTD,2201716,-0.12,Difference between Purchase Order and Supplier Invoice price for Stores items
Department of Health,NHS Blood and Transplant,27/03/2018,AVERAGE COST VARIANCE,General and Other,ENGINE PARTNERS UK LLP,2202366,0.01,Difference between Purchase Order and Supplier Invoice price for Stores items
Department of Health,NHS Blood and Transplant,27/03/2018,CARRIAGE INWARDS,General and Other,MAST GROUP LTD,2200502,27.6,Carriage charges on stores purchases
Department of Health,NHS Blood and Transplant,27/03/2018,CHEMICALS & REAGENTS,Diagnostic & Therapeutic Services,TAKARA BIO EUROPE S.A.S,2200141,60798.77,Chemicals and Reagents used
Department of Health,NHS Blood and Transplant,27/03/2018,COURIER & DELIVERY CHARGES,Organ Donation & Transplantation,AMVALE LTD,2200709,22371.39,External courier and transport company costs
Department of Health,NHS Blood and Transplant,27/03/2018,COURIER & DELIVERY CHARGES,Organ Donation & Transplantation,AMVALE LTD,2201929,25742.18,External courier and transport company costs
Department of Health,NHS Blood and Transplant,27/03/2018,EQUIPMENT PURCHASES,Blood Supply: Blood Donation,RENFREW GROUP INTERNATIONAL,2203985,38784,Purchase of Equipment
Department of Health,NHS Blood and Transplant,27/03/2018,EQUIPMENT PURCHASES,General and Other,RENFREW GROUP INTERNATIONAL,2203985,38784,Purchase of Equipment
Department of Health,NHS Blood and Transplant,27/03/2018,EXTERNAL MAILING SERVICES,Blood Supply: Blood Donation,ALLIED PUBLICITY SERVICES MANCHESTER LTD,2200476,63543.43,"External costs of mailing services, primarily relating to communications with donors"
Department of Health,NHS Blood and Transplant,27/03/2018,EXTERNAL MARKETING SERVICES,Blood Supply: Blood Donation,TELEPERFORMANCE LIMITED,2201871,95343.32,"External costs of marketing services, primarily relating to communications with donors"
Department of Health,NHS Blood and Transplant,27/03/2018,EXTERNAL MARKETING SERVICES,Marketing and Communications,CARAT A TRADING DIVISION OF DENTSU AEGIS UK LTD,2201701,54860.67,"External costs of marketing services, primarily relating to communications with donors"
Department of Health,NHS Blood and Transplant,27/03/2018,EXTERNAL MARKETING SERVICES,Marketing and Communications,CARAT A TRADING DIVISION OF DENTSU AEGIS UK LTD,2201716,44998.92,"External costs of marketing services, primarily relating to communications with donors"
Department of Health,NHS Blood and Transplant,27/03/2018,EXTERNAL SERVICES OTHER,"Blood Supply: Manufacturing, Testing & Issue",ILEX SCIENTIFIC LTD,2201775,62400,External costs of providing other services
Department of Health,NHS Blood and Transplant,27/03/2018,EXTERNAL SERVICES OTHER,General and Other,CAPGEMINI UK PLC,2200967,330191.5,External costs of providing other services
Department of Health,NHS Blood and Transplant,27/03/2018,EXTERNAL SERVICES OTHER,General and Other,OPEN ANSWERS LTD,2201423,33856.5,External costs of providing other services
Department of Health,NHS Blood and Transplant,27/03/2018,EXTERNAL SERVICES OTHER,Human Resources,SOFTWARE BOX LTD,2203006,33136.14,External costs of providing other services
Department of Health,NHS Blood and Transplant,27/03/2018,EXTERNAL SERVICES OTHER,Organ Donation & Transplantation,T-IMPACT LIMITED,2203355,51947.5,External costs of providing other services
Department of Health,NHS Blood and Transplant,27/03/2018,EXTERNAL SERVICES OTHER,Research & Development,CITY UNIVERSITY LONDON.,2200785,44877,External costs of providing other services
Department of Health,NHS Blood and Transplant,27/03/2018,IMPORTS FRESH FROZEN PLASMA,"Blood Supply: Manufacturing, Testing & Issue",PAM MEDICAL SUPPLIES LIMITED,2196564,72095.36,Imports of Fresh Frozen Plasma
Department of Health,NHS Blood and Transplant,27/03/2018,IMPORTS FRESH FROZEN PLASMA,"Blood Supply: Manufacturing, Testing & Issue",PAM MEDICAL SUPPLIES LIMITED,2202904,75430.48,Imports of Fresh Frozen Plasma
Department of Health,NHS Blood and Transplant,27/03/2018,INVENTORY MATERIALS,NBS and ODT All Areas,MACO PHARMA UK LTD,2200485,49035.96,Items purchased for warehouses (and subsequent issue to operational departments)
Department of Health,NHS Blood and Transplant,27/03/2018,INVENTORY MATERIALS,NBS and ODT All Areas,MACO PHARMA UK LTD,2200492,79656.19,Items purchased for warehouses (and subsequent issue to operational departments)
Department of Health,NHS Blood and Transplant,27/03/2018,INVENTORY MATERIALS,NBS and ODT All Areas,MACO PHARMA UK LTD,2201439,45077.76,Items purchased for warehouses (and subsequent issue to operational departments)
Department of Health,NHS Blood and Transplant,27/03/2018,INVENTORY MATERIALS,NBS and ODT All Areas,MACO PHARMA UK LTD,2201440,71107.74,Items purchased for warehouses (and subsequent issue to operational departments)
Department of Health,NHS Blood and Transplant,27/03/2018,INVENTORY MATERIALS,NBS and ODT All Areas,MACO PHARMA UK LTD,2201443,40569.98,Items purchased for warehouses (and subsequent issue to operational departments)
Department of Health,NHS Blood and Transplant,27/03/2018,INVENTORY MATERIALS,NBS and ODT All Areas,TERUMO BCT EUROPE NV/SA,2199982,48349.44,Items purchased for warehouses (and subsequent issue to operational departments)
Department of Health,NHS Blood and Transplant,27/03/2018,INVENTORY MATERIALS,NBS and ODT All Areas,TERUMO BCT EUROPE NV/SA,2203949,33459.84,Items purchased for warehouses (and subsequent issue to operational departments)
Department of Health,NHS Blood and Transplant,27/03/2018,INVENTORY MATERIALS,NBS and ODT All Areas,TERUMO BCT EUROPE NV/SA,2203989,66140.93,Items purchased for warehouses (and subsequent issue to operational departments)
Department of Health,NHS Blood and Transplant,27/03/2018,INVENTORY MATERIALS,NBS and ODT All Areas,TERUMO BCT EUROPE NV/SA,2204220,35159.04,Items purchased for warehouses (and subsequent issue to operational departments)
Department of Health,NHS Blood and Transplant,27/03/2018,INVENTORY MATERIALS,NBS and ODT All Areas,THERAKOS (UK) LTD,2199638,67392,Items purchased for warehouses (and subsequent issue to operational departments)
Department of Health,NHS Blood and Transplant,27/03/2018,INVENTORY MATERIALS,NBS and ODT All Areas,THERAKOS (UK) LTD,2199640,33696,Items purchased for warehouses (and subsequent issue to operational departments)
Department of Health,NHS Blood and Transplant,27/03/2018,INVENTORY MATERIALS,NBS and ODT All Areas,THERAKOS (UK) LTD,2202412,33696,Items purchased for warehouses (and subsequent issue to operational departments)
Department of Health,NHS Blood and Transplant,27/03/2018,INVENTORY MATERIALS,NBS and ODT All Areas,THERAKOS (UK) LTD,2203685,33696,Items purchased for warehouses (and subsequent issue to operational departments)
Department of Health,NHS Blood and Transplant,27/03/2018,INVENTORY MATERIALS,NBS and ODT All Areas,VWR INTERNATIONAL LTD (FORMERLY MERCK),2201505,26568,Items purchased for warehouses (and subsequent issue to operational departments)
Department of Health,NHS Blood and Transplant,27/03/2018,INVENTORY MATERIALS,NBS and ODT All Areas,VWR INTERNATIONAL LTD (FORMERLY MERCK),2203869,40824,Items purchased for warehouses (and subsequent issue to operational departments)
Department of Health,NHS Blood and Transplant,27/03/2018,IT HARDWARE MAINTENANCE,Information Communication Technology,MCSA GROUP LTD T/A MAINDEC,2203443,171815,Maintenance costs of IT hardware
Department of Health,NHS Blood and Transplant,27/03/2018,IT HARDWARE MAINTENANCE,Information Communication Technology,SAVANT LIMITED,2203345,10638,Maintenance costs of IT hardware
Department of Health,NHS Blood and Transplant,27/03/2018,IT SOFTWARE,General and Other,BYTES TECHNOLOGY GROUP,2204364,44625.17,Purchase of IT software
Department of Health,NHS Blood and Transplant,27/03/2018,IT SOFTWARE MAINTENANCE,Information Communication Technology,SAVANT LIMITED,2203342,49502,Maintenance costs of IT software
Department of Health,NHS Blood and Transplant,27/03/2018,IT SOFTWARE MAINTENANCE,Information Communication Technology,SAVANT LIMITED,2203345,70959.33,Maintenance costs of IT software
Department of Health,NHS Blood and Transplant,27/03/2018,IT SOFTWARE MAINTENANCE,Information Communication Technology,SOFTCAT LTD,2199286,24064.36,Maintenance costs of IT software
Department of Health,NHS Blood and Transplant,27/03/2018,MANAGEMENT CONSULTANTS,General and Other,SAVANT LIMITED,2203751,35300,Management consultancy fees incurred - upgrade to PULSE database hardware
Department of Health,NHS Blood and Transplant,27/03/2018,MEDIA ADVERTISING,Marketing and Communications,CARAT A TRADING DIVISION OF DENTSU AEGIS UK LTD,2201735,30423.63,Media advertising costs
Department of Health,NHS Blood and Transplant,27/03/2018,MEDIA ADVERTISING,Marketing and Communications,CARAT A TRADING DIVISION OF DENTSU AEGIS UK LTD,2201742,124357.31,Media advertising costs
Department of Health,NHS Blood and Transplant,27/03/2018,MEDIA ADVERTISING,Marketing and Communications,CARAT A TRADING DIVISION OF DENTSU AEGIS UK LTD,2201793,66851.24,Media advertising costs
Department of Health,NHS Blood and Transplant,27/03/2018,MEDIA ADVERTISING,Marketing and Communications,CARAT A TRADING DIVISION OF DENTSU AEGIS UK LTD,2201794,42949.85,Media advertising costs
Department of Health,NHS Blood and Transplant,27/03/2018,MEDIA ADVERTISING,Marketing and Communications,CARAT A TRADING DIVISION OF DENTSU AEGIS UK LTD,2201795,44982.14,Media advertising costs
Department of Health,NHS Blood and Transplant,27/03/2018,MEDIA ADVERTISING,Marketing and Communications,CARAT A TRADING DIVISION OF DENTSU AEGIS UK LTD,2202414,100625.55,Media advertising costs
Department of Health,NHS Blood and Transplant,27/03/2018,OTHER PROFESSIONAL FEES,Marketing and Communications,ENGINE PARTNERS UK LLP,2202366,33117.07,Other professional fees - NHSBT campaign creative development and optimisation costs
Department of Health,NHS Blood and Transplant,27/03/2018,POSTAGE,Blood Supply: Blood Donation,ALLIED PUBLICITY SERVICES MANCHESTER LTD,2203209,36391.1,Postage costs
Department of Health,NHS Blood and Transplant,27/03/2018,POSTAGE,Organ Donation & Transplantation,ALLIED PUBLICITY SERVICES MANCHESTER LTD,2203210,22564.85,Postage costs
Department of Health,NHS Blood and Transplant,27/03/2018,PREMISES MAINTENANCE - MINOR WORKS,Estates & Facilities,MCCARRICK CONSTRUCTION COMPANY LTD,2199292,75587.65,Minor works projects costs
Department of Health,NHS Blood and Transplant,27/03/2018,PREMISES MAINTENANCE - PLANNED,Estates & Facilities,CBRE MANAGED SERVICES LTD FORMERLY NORLAND MANAGED SERVICES,2133163,132034.27,Planned / scheduled premises maintenace costs
Department of Health,NHS Blood and Transplant,27/03/2018,TEST KITS - MOLECULAR,"Blood Supply: Manufacturing, Testing & Issue",GRIFOLS UK LTD,2200086,106000,For testing of donations and samples for specific markers
Department of Health,NHS Blood and Transplant,27/03/2018,TEST KITS OTHER,"Blood Supply: Manufacturing, Testing & Issue",BIOMERIEUX,2202123,596866.11,For testing of donations and samples for specific markers
Department of Health,NHS Blood and Transplant,27/03/2018,TEST KITS OTHER,"Blood Supply: Manufacturing, Testing & Issue",BIOMERIEUX,2202126,35717.27,For testing of donations and samples for specific markers
Department of Health,NHS Blood and Transplant,27/03/2018,TEST KITS OTHER,"Blood Supply: Manufacturing, Testing & Issue",GRIFOLS UK LTD,2200082,58500,For testing of donations and samples for specific markers
Department of Health,NHS Blood and Transplant,27/03/2018,TEST KITS OTHER,Diagnostic & Therapeutic Services,ILLUMINA CAMBRIDGE LTD,2200209,203603.04,For testing of donations and samples for specific markers
Department of Health,NHS Blood and Transplant,27/03/2018,TEST KITS OTHER,Diagnostic & Therapeutic Services,VH BIO LTD,2200193,31800,For testing of donations and samples for specific markers
Department of Health,NHS Blood and Transplant,27/03/2018,TEST KITS TPHA,"Blood Supply: Manufacturing, Testing & Issue",MAST GROUP LTD,2200502,37061.8,For testing of donations and samples for specific markers
Department of Health,NHS Blood and Transplant,28/03/2018,LOSSES & COMPENSATION,Finance,REGENT CLEANING ,6582,30000,Losses and compensation costs arising from claims
Department of Health,NHS Blood and Transplant,28/03/2018,CAPITAL PURCHASES ACCOUNT,NBS and ODT All Areas,ACCLAIM CONTRACTS LTD,2202632,44904.88,Purchase of Fixed Assets
Department of Health,NHS Blood and Transplant,28/03/2018,CAPITAL PURCHASES ACCOUNT,NBS and ODT All Areas,ADCOCK REFRIG & AIR COND LTD,2202625,-88640.12,Purchase of Fixed Assets
Department of Health,NHS Blood and Transplant,28/03/2018,CAPITAL PURCHASES ACCOUNT,NBS and ODT All Areas,ADCOCK REFRIG & AIR COND LTD,2202627,71531.88,Purchase of Fixed Assets
Department of Health,NHS Blood and Transplant,28/03/2018,CAPITAL PURCHASES ACCOUNT,NBS and ODT All Areas,ADCOCK REFRIG & AIR COND LTD,2202629,43025.52,Purchase of Fixed Assets
Department of Health,NHS Blood and Transplant,28/03/2018,CAPITAL PURCHASES ACCOUNT,NBS and ODT All Areas,ADCOCK REFRIG & AIR COND LTD,2202631,93305.4,Purchase of Fixed Assets
Department of Health,NHS Blood and Transplant,28/03/2018,CAPITAL PURCHASES ACCOUNT,NBS and ODT All Areas,MEDICAL SUPPLY CO. LTD,2202611,39819.66,Purchase of Fixed Assets
Department of Health,NHS Blood and Transplant,28/03/2018,CAPITAL PURCHASES ACCOUNT,NBS and ODT All Areas,SYSMEX UK LTD,2202606,59788.21,Purchase of Fixed Assets
Department of Health,NHS Blood and Transplant,28/03/2018,CAPITAL PURCHASES ACCOUNT,NBS and ODT All Areas,VEOLIA WATER TECHNOLOGIES,2202029,57486,Purchase of Fixed Assets
Department of Health,NHS Blood and Transplant,28/03/2018,CAPITAL PURCHASES ACCOUNT,NBS and ODT All Areas,WATSON-MARLOW LTD,2203013,101551.2,Purchase of Fixed Assets
Department of Health,NHS Blood and Transplant,29/03/2018,CONSULTANT,Clinical,KING'S COLLEGE HOSPITAL NHS FOUNDATION TRUST,2202843,71163.51,Reimbursement to other NHS bodies for Medical Consultant staff
Department of Health,NHS Blood and Transplant,29/03/2018,COURIER & DELIVERY CHARGES,Organ Donation & Transplantation,AMVALE LTD,2204618,27324.06,External courier and transport company costs
Department of Health,NHS Blood and Transplant,29/03/2018,COURIER & DELIVERY CHARGES,Organ Donation & Transplantation,AMVALE LTD,2204642,23141.26,External courier and transport company costs
Department of Health,NHS Blood and Transplant,29/03/2018,ELECTRICITY,Estates & Facilities,OXFORD RADCLIFFE HOSPITALS NHS TRUST,2202624,28054.51,Electricity costs
Department of Health,NHS Blood and Transplant,29/03/2018,EQUIPMENT PURCHASES,Blood Supply: Blood Donation,RADIOMETER LIMITED,2205294,47136,Purchase of Equipment
Department of Health,NHS Blood and Transplant,29/03/2018,EXTERNAL SERVICES OTHER,Blood Supply: Blood Donation,SAPIENT LTD,2204719,55000,External costs of providing other services
Department of Health,NHS Blood and Transplant,29/03/2018,EXTERNAL SERVICES OTHER,General and Other,CAPGEMINI UK PLC,2204981,233919.5,External costs of providing other services
Department of Health,NHS Blood and Transplant,29/03/2018,EXTERNAL SERVICES OTHER,General and Other,CAPGEMINI UK PLC,2205001,37740,External costs of providing other services
Department of Health,NHS Blood and Transplant,29/03/2018,EXTERNAL SERVICES OTHER,General and Other,CAPGEMINI UK PLC,2205008,31422,External costs of providing other services
Department of Health,NHS Blood and Transplant,29/03/2018,EXTERNAL SERVICES OTHER,General and Other,REPLY LIMITED,2205016,59812.5,External costs of providing other services
Department of Health,NHS Blood and Transplant,29/03/2018,EXTERNAL SERVICES OTHER,General and Other,REPLY LIMITED,2205034,28495,External costs of providing other services
Department of Health,NHS Blood and Transplant,29/03/2018,EXTERNAL SERVICES OTHER,General and Other,REPLY LIMITED,2205046,22865,External costs of providing other services
Department of Health,NHS Blood and Transplant,29/03/2018,EXTERNAL SERVICES OTHER,General and Other,REPLY LIMITED,2205049,22780,External costs of providing other services
Department of Health,NHS Blood and Transplant,29/03/2018,EXTERNAL SERVICES OTHER,General and Other,REPLY LIMITED,2205053,51992,External costs of providing other services
Department of Health,NHS Blood and Transplant,29/03/2018,EXTERNAL SERVICES OTHER,Research & Development,OXFORD RADCLIFFE HOSPITALS NHS TRUST,2203267,30661,External costs of providing other services
Department of Health,NHS Blood and Transplant,29/03/2018,EXTERNAL SERVICES OTHER,Research & Development,UNIVERSITY OF OXFORD,2203325,385454.25,External costs of providing other services
Department of Health,NHS Blood and Transplant,29/03/2018,FURNITURE & FITTINGS,Estates & Facilities,CBRE MANAGED SERVICES LTD FORMERLY NORLAND MANAGED SERVICES,2204525,40000,Costs of furniture and fittings
Department of Health,NHS Blood and Transplant,29/03/2018,GAS,Estates & Facilities,OXFORD RADCLIFFE HOSPITALS NHS TRUST,2202624,1818.02,Gas costs
Department of Health,NHS Blood and Transplant,29/03/2018,IMPORTS FRESH FROZEN PLASMA,"Blood Supply: Manufacturing, Testing & Issue",PAM MEDICAL SUPPLIES LIMITED,2197303,67553.92,Imports of Fresh Frozen Plasma
Department of Health,NHS Blood and Transplant,29/03/2018,INVENTORY MATERIALS,NBS and ODT All Areas,TERUMO BCT EUROPE NV/SA,2204495,83552.26,Items purchased for warehouses (and subsequent issue to operational departments)
Department of Health,NHS Blood and Transplant,29/03/2018,INVENTORY MATERIALS,NBS and ODT All Areas,TERUMO BCT EUROPE NV/SA,2204498,66140.93,Items purchased for warehouses (and subsequent issue to operational departments)
Department of Health,NHS Blood and Transplant,29/03/2018,INVENTORY MATERIALS,NBS and ODT All Areas,TERUMO BCT EUROPE NV/SA,2204941,32486.4,Items purchased for warehouses (and subsequent issue to operational departments)
Department of Health,NHS Blood and Transplant,29/03/2018,IT COMMUNICATIONS LINKS,Information Communication Technology,SCC - AUDIOVISUAL DIVISION,2204218,48765.48,Costs of IT infrastructure communications links
Department of Health,NHS Blood and Transplant,29/03/2018,MEDIA ADVERTISING,Blood Supply: Blood Donation,ENGINE PARTNERS UK LLP,2205292,47369,Media advertising costs
Department of Health,NHS Blood and Transplant,29/03/2018,OTHER PROFESSIONAL FEES,Logistics,HITACHI CAPITAL,2204878,3146.4,Other professional fees - monthly management charge relating to leased fleet vehicle maintenance contract
Department of Health,NHS Blood and Transplant,29/03/2018,PREMISES MAINTENANCE - MINOR WORKS,Estates & Facilities,CBRE MANAGED SERVICES LTD FORMERLY NORLAND MANAGED SERVICES,2204481,196500,Minor works projects costs
Department of Health,NHS Blood and Transplant,29/03/2018,PREMISES MAINTENANCE - MINOR WORKS,Estates & Facilities,CBRE MANAGED SERVICES LTD FORMERLY NORLAND MANAGED SERVICES,2204538,22459.33,Minor works projects costs
Department of Health,NHS Blood and Transplant,29/03/2018,PREMISES MAINTENANCE - MINOR WORKS,Estates & Facilities,CRE8SPACE LTD,2204695,28869,Minor works projects costs
Department of Health,NHS Blood and Transplant,29/03/2018,PREMISES MAINTENANCE - MINOR WORKS,Estates & Facilities,WOODNUT CONSTRUCTION AND DEVELOPMENT LTD,2205196,49709.84,Minor works projects costs
Department of Health,NHS Blood and Transplant,29/03/2018,PREMISES MAINTENANCE - PLANNED,Estates & Facilities,CBRE MANAGED SERVICES LTD FORMERLY NORLAND MANAGED SERVICES,2204529,53357.39,Planned / scheduled premises maintenace costs
Department of Health,NHS Blood and Transplant,29/03/2018,RENT/LEASE,Diagnostic & Therapeutic Services,CENTRAL MANCHESTER UNI HOSPITAL NHSFT,2202465,75297,Property rent costs
Department of Health,NHS Blood and Transplant,29/03/2018,RENT/LEASE,Estates & Facilities,OXFORD RADCLIFFE HOSPITALS NHS TRUST,2198720,115250,Property rent costs
Department of Health,NHS Blood and Transplant,29/03/2018,RENT/LEASE,Estates & Facilities,RAPLEYS LLP,2204539,38250,Property rent costs
Department of Health,NHS Blood and Transplant,29/03/2018,VEHICLE REPAIRS & MAINTENANCE,Logistics,HITACHI CAPITAL,2204878,43926.27,External contract for fleet vehicle repairs amd maintenance
Department of Health,NHS Blood and Transplant,29/03/2018,WATER & SEWERAGE,Estates & Facilities,OXFORD RADCLIFFE HOSPITALS NHS TRUST,2202624,2451.29,Charges relating to water and sewerage costs
